[Event "Early-Titled-Tuesday-Blitz-May-07-2024"]
[Site "Chess.com"]
[Date "2024.05.07"]
[Round "2"]
[White "TigranMukhutdinov"]
[Black "schackspelaren"]
[Result "1-0"]
[WhiteElo "2697"]
[BlackElo "2376"]
[TimeControl "180+1"]
[EndTime "8:20:22 PDT"]
[Termination "TigranMukhutdinov won by resignation"]

1. e4 {[%clk 0:03:00.9]} 1... e6 {[%clk 0:02:59.8]} 2. d4 {[%clk 0:03:00.3]}
2... d5 {[%clk 0:03:00.5]} 3. Bd3 {[%clk 0:03:01]} 3... dxe4 {[%clk 0:02:59.4]}
4. Bxe4 {[%clk 0:03:01.9]} 4... Nf6 {[%clk 0:02:59.5]} 5. Bf3 {[%clk 0:03:02.5]}
5... Be7 {[%clk 0:02:58.6]} 6. Ne2 {[%clk 0:03:02.6]} 6... O-O {[%clk
0:02:58.1]} 7. O-O {[%clk 0:03:03]} 7... Nbd7 {[%clk 0:02:58.4]} 8. Bf4 {[%clk
0:03:01.3]} 8... c5 {[%clk 0:02:58.2]} 9. dxc5 {[%clk 0:02:52.5]} 9... Nxc5
{[%clk 0:02:57.4]} 10. Nbc3 {[%clk 0:02:47]} 10... a6 {[%clk 0:02:52.1]} 11.
Qxd8 {[%clk 0:02:43.9]} 11... Rxd8 {[%clk 0:02:48.8]} 12. Rfd1 {[%clk
0:02:43.4]} 12... h6 {[%clk 0:02:26.8]} 13. b4 {[%clk 0:02:34.1]} 13... Ncd7
{[%clk 0:02:22.6]} 14. a3 {[%clk 0:02:32.4]} 14... e5 {[%clk 0:02:21.1]} 15. Be3
{[%clk 0:02:26.7]} 15... Nf8 {[%clk 0:02:13.2]} 16. Rxd8 {[%clk 0:02:23.6]}
16... Bxd8 {[%clk 0:02:13.3]} 17. Rd1 {[%clk 0:02:24.3]} 17... Be7 {[%clk
0:02:13.2]} 18. Nd5 {[%clk 0:02:16.2]} 18... Nxd5 {[%clk 0:02:11.4]} 19. Bxd5
{[%clk 0:02:17.1]} 19... a5 {[%clk 0:02:05]} 20. c3 {[%clk 0:01:57]} 20... axb4
{[%clk 0:02:04.8]} 21. axb4 {[%clk 0:01:57.9]} 21... Ne6 {[%clk 0:02:03.2]} 22.
Ng3 {[%clk 0:01:51.9]} 22... Nf4 {[%clk 0:01:53.5]} 23. Be4 {[%clk 0:01:44.9]}
23... g6 {[%clk 0:01:48.5]} 24. Bxf4 {[%clk 0:01:32.4]} 24... exf4 {[%clk
0:01:48.1]} 25. Ne2 {[%clk 0:01:33.2]} 25... g5 {[%clk 0:01:45.2]} 26. f3 {[%clk
0:01:26.8]} 26... Bf6 {[%clk 0:01:41.7]} 27. Rd6 {[%clk 0:01:24.8]} 27... Kg7
{[%clk 0:01:40.2]} 28. Rb6 {[%clk 0:01:23.8]} 28... Ra1+ {[%clk 0:01:33.9]} 29.
Kf2 {[%clk 0:01:23.9]} 29... Ra2 {[%clk 0:01:34.5]} 30. Ke1 {[%clk 0:01:14.2]}
30... Bd8 {[%clk 0:01:11.2]} 31. Rb5 {[%clk 0:01:13.5]} 31... b6 {[%clk
0:01:08.5]} 32. Rd5 {[%clk 0:01:09.3]} 32... Bf6 {[%clk 0:01:07.7]} 33. Rd6
{[%clk 0:01:09.8]} 33... Ba6 {[%clk 0:01:04.4]} 34. Bd3 {[%clk 0:01:05.7]} 34...
Bxd3 {[%clk 0:01:01.6]} 35. Rxd3 {[%clk 0:01:06.6]} 35... b5 {[%clk 0:00:55]}
36. Rd5 {[%clk 0:01:05.2]} 36... Ra3 {[%clk 0:00:50.8]} 37. Kd2 {[%clk
0:01:03.5]} 37... Ra2+ {[%clk 0:00:50.8]} 38. Kd3 {[%clk 0:01:03.8]} 38... Ra1
{[%clk 0:00:44.4]} 39. Rxb5 {[%clk 0:01:02.8]} 39... Rh1 {[%clk 0:00:44.9]} 40.
h3 {[%clk 0:00:59.9]} 40... Rh2 {[%clk 0:00:45.3]} 41. Rc5 {[%clk 0:00:28.2]}
41... Rxg2 {[%clk 0:00:45.1]} 42. b5 {[%clk 0:00:28.7]} 42... h5 {[%clk
0:00:32.2]} 43. b6 {[%clk 0:00:28.7]} 43... g4 {[%clk 0:00:32.6]} 44. hxg4
{[%clk 0:00:28.5]} 44... hxg4 {[%clk 0:00:32.8]} 45. b7 {[%clk 0:00:29.2]} 45...
gxf3 {[%clk 0:00:30.5]} 46. b8=Q {[%clk 0:00:24.7]} 46... fxe2 {[%clk 0:00:30]}
47. Qe8 {[%clk 0:00:22.6]} 47... f3 {[%clk 0:00:26.4]} 48. Rc8 {[%clk
0:00:20.4]} 48... Kg6 {[%clk 0:00:24.9]} 49. Qe4+ {[%clk 0:00:19.8]} 49... Kg7
{[%clk 0:00:22.5]} 50. Re8 {[%clk 0:00:20.2]} 50... Rg1 {[%clk 0:00:15]} 51.
Qxf3 {[%clk 0:00:19.4]} 51... e1=Q {[%clk 0:00:14.6]} 52. Rxe1 {[%clk
0:00:20.1]} 52... Rxe1 {[%clk 0:00:14.2]} 53. Qg3+ {[%clk 0:00:20.8]} 1-0

[Event "Early-Titled-Tuesday-Blitz-May-07-2024"]
[Site "Chess.com"]
[Date "2024.05.07"]
[Round "2"]
[White "Djager97"]
[Black "SuanTiltado"]
[Result "1-0"]
[WhiteElo "2572"]
[BlackElo "2256"]
[TimeControl "180+1"]
[EndTime "8:20:23 PDT"]
[Termination "Djager97 won by resignation"]

1. e4 {[%clk 0:03:00.9]} 1... c6 {[%clk 0:02:58]} 2. Nf3 {[%clk 0:02:57.8]} 2...
d5 {[%clk 0:02:58.5]} 3. exd5 {[%clk 0:02:58.4]} 3... cxd5 {[%clk 0:02:59.2]} 4.
Ne5 {[%clk 0:02:58.4]} 4... Nc6 {[%clk 0:02:58.3]} 5. Bb5 {[%clk 0:02:58.9]}
5... Bd7 {[%clk 0:02:57.9]} 6. Nxd7 {[%clk 0:02:59.3]} 6... Qxd7 {[%clk
0:02:57.6]} 7. d4 {[%clk 0:02:59.7]} 7... e6 {[%clk 0:02:58]} 8. c3 {[%clk
0:02:59.4]} 8... Bd6 {[%clk 0:02:58.2]} 9. Nd2 {[%clk 0:02:58.4]} 9... a6 {[%clk
0:02:56.7]} 10. Bd3 {[%clk 0:02:57.6]} 10... Nf6 {[%clk 0:02:56.5]} 11. O-O
{[%clk 0:02:57.7]} 11... O-O {[%clk 0:02:55.9]} 12. Re1 {[%clk 0:02:57.7]} 12...
Qc7 {[%clk 0:02:56.2]} 13. Nf3 {[%clk 0:02:57.3]} 13... h6 {[%clk 0:02:49.8]}
14. g3 {[%clk 0:02:42.7]} 14... b5 {[%clk 0:02:31.2]} 15. a3 {[%clk 0:02:41.6]}
15... Rab8 {[%clk 0:02:29.5]} 16. Be3 {[%clk 0:02:33.3]} 16... Rfe8 {[%clk
0:02:27.9]} 17. Kg2 {[%clk 0:02:25.6]} 17... a5 {[%clk 0:02:21.6]} 18. Qe2
{[%clk 0:02:25.3]} 18... b4 {[%clk 0:02:20.9]} 19. cxb4 {[%clk 0:02:26.2]} 19...
axb4 {[%clk 0:02:21.1]} 20. a4 {[%clk 0:02:27.1]} 20... Ne4 {[%clk 0:02:05.4]}
21. Rec1 {[%clk 0:02:02.7]} 21... Rec8 {[%clk 0:02:00.7]} 22. a5 {[%clk
0:01:59.3]} 22... Qa7 {[%clk 0:01:57.2]} 23. a6 {[%clk 0:01:58.6]} 23... b3
{[%clk 0:01:55.4]} 24. Ne5 {[%clk 0:01:25]} 24... Nb4 {[%clk 0:01:44.7]} 25.
Bxe4 {[%clk 0:01:22.3]} 25... dxe4 {[%clk 0:01:42.3]} 26. d5 {[%clk 0:01:18.8]}
26... Qa8 {[%clk 0:01:23.3]} 27. Nd7 {[%clk 0:00:50.8]} 27... Qxd5 {[%clk
0:01:02.4]} 28. Nxb8 {[%clk 0:00:46.2]} 28... Rxb8 {[%clk 0:01:02.2]} 29. a7
{[%clk 0:00:43.4]} 29... Ra8 {[%clk 0:01:02]} 30. Qc4 {[%clk 0:00:38.6]} 30...
Nd3 {[%clk 0:00:41.3]} 31. Qxd5 {[%clk 0:00:29.9]} 31... exd5 {[%clk 0:00:42.2]}
32. Rc6 {[%clk 0:00:29.9]} 32... Be5 {[%clk 0:00:40.3]} 33. Rb6 {[%clk
0:00:29.2]} 33... Nxb2 {[%clk 0:00:37.4]} 34. Bd4 {[%clk 0:00:23.6]} 34... Nc4
{[%clk 0:00:35.5]} 35. Rxb3 {[%clk 0:00:16.9]} 35... Bd6 {[%clk 0:00:30.8]} 36.
Rab1 {[%clk 0:00:16.7]} 36... Kh7 {[%clk 0:00:17.6]} 37. Rb8 {[%clk 0:00:14.8]}
37... Bxb8 {[%clk 0:00:17.1]} 38. axb8=Q {[%clk 0:00:15.7]} 38... Rxb8 {[%clk
0:00:17.4]} 39. Rxb8 {[%clk 0:00:15.9]} 39... Nd2 {[%clk 0:00:12.4]} 40. Rd8
{[%clk 0:00:15.2]} 40... Nf3 {[%clk 0:00:09.8]} 41. Rxd5 {[%clk 0:00:15.4]}
41... f6 {[%clk 0:00:09.8]} 42. Rd7 {[%clk 0:00:14.6]} 42... Kg6 {[%clk
0:00:09.7]} 43. Bc3 {[%clk 0:00:13.8]} 43... Ng5 {[%clk 0:00:08.3]} 44. Re7
{[%clk 0:00:12.5]} 44... h5 {[%clk 0:00:06.8]} 45. h4 {[%clk 0:00:12]} 1-0

[Event "Early-Titled-Tuesday-Blitz-May-07-2024"]
[Site "Chess.com"]
[Date "2024.05.07"]
[Round "2"]
[White "jlf287"]
[Black "luggevoila"]
[Result "1-0"]
[WhiteElo "2526"]
[BlackElo "2313"]
[TimeControl "180+1"]
[EndTime "8:20:23 PDT"]
[Termination "jlf287 won on time"]

1. e4 {[%clk 0:03:00.9]} 1... e5 {[%clk 0:02:59.4]} 2. Nf3 {[%clk 0:03:01.2]}
2... Nc6 {[%clk 0:02:59.8]} 3. Bc4 {[%clk 0:03:01.8]} 3... Nf6 {[%clk
0:02:59.6]} 4. d3 {[%clk 0:03:02.4]} 4... Bc5 {[%clk 0:02:58.6]} 5. O-O {[%clk
0:03:02.1]} 5... d6 {[%clk 0:02:58.3]} 6. c3 {[%clk 0:03:02.2]} 6... a5 {[%clk
0:02:56.3]} 7. Nbd2 {[%clk 0:02:56.3]} 7... Ba7 {[%clk 0:02:54.1]} 8. Re1 {[%clk
0:02:53.5]} 8... O-O {[%clk 0:02:50.5]} 9. h3 {[%clk 0:02:52.4]} 9... Be6 {[%clk
0:02:50.2]} 10. Bb5 {[%clk 0:02:51.5]} 10... Ne7 {[%clk 0:02:48.4]} 11. Nf1
{[%clk 0:02:49.4]} 11... c6 {[%clk 0:02:46.2]} 12. Ba4 {[%clk 0:02:49]} 12...
Ng6 {[%clk 0:02:45.5]} 13. Ng3 {[%clk 0:02:47.1]} 13... h6 {[%clk 0:02:39.7]}
14. d4 {[%clk 0:02:34.7]} 14... Qc7 {[%clk 0:02:30]} 15. Bb3 {[%clk 0:02:24.4]}
15... Rfe8 {[%clk 0:02:25.1]} 16. Be3 {[%clk 0:02:16.8]} 16... exd4 {[%clk
0:02:18.8]} 17. Nxd4 {[%clk 0:02:03.7]} 17... Bxb3 {[%clk 0:02:18.4]} 18. axb3
{[%clk 0:02:04.6]} 18... Nxe4 {[%clk 0:02:10.2]} 19. Nxe4 {[%clk 0:01:36.8]}
19... Rxe4 {[%clk 0:02:09.8]} 20. Qf3 {[%clk 0:01:37.4]} 20... Rae8 {[%clk
0:02:02.1]} 21. Nf5 {[%clk 0:01:36.6]} 21... d5 {[%clk 0:01:46.3]} 22. Red1
{[%clk 0:01:29.2]} 22... Bxe3 {[%clk 0:01:45.3]} 23. Nxe3 {[%clk 0:01:29.9]}
23... Nh4 {[%clk 0:01:39.7]} 24. Qh5 {[%clk 0:01:23.3]} 24... Rxe3 {[%clk
0:01:27.3]} 25. fxe3 {[%clk 0:01:23]} 25... Qg3 {[%clk 0:01:27.3]} 26. Qe2
{[%clk 0:01:20.3]} 26... Rxe3 {[%clk 0:01:21.2]} 27. Qf2 {[%clk 0:01:13.4]}
27... Nf3+ {[%clk 0:00:59.1]} 28. Kf1 {[%clk 0:01:13.9]} 28... Qf4 {[%clk
0:00:54]} 29. Ra4 {[%clk 0:00:57.8]} 29... d4 {[%clk 0:00:08.2]} 30. Raxd4
{[%clk 0:00:53.3]} 30... Nh2+ {[%clk 0:00:04.8]} 31. Kg1 {[%clk 0:00:52.6]}
31... Qe5 {[%clk 0:00:05.4]} 32. Qf4 {[%clk 0:00:37.4]} 32... Nf3+ {[%clk
0:00:00.4]} 33. gxf3 {[%clk 0:00:36.6]} 33... Re1+ {[%clk 0:00:00.6]} 34. Rxe1
{[%clk 0:00:23.8]} 34... Qxe1+ {[%clk 0:00:01.5]} 35. Kg2 {[%clk 0:00:24.5]}
35... Qe2+ {[%clk 0:00:02]} 36. Kg3 {[%clk 0:00:24.9]} 36... Qe1+ {[%clk
0:00:01.1]} 37. Kg4 {[%clk 0:00:24.7]} 37... Qg1+ {[%clk 0:00:01.3]} 38. Kh5
{[%clk 0:00:05.7]} 38... Qg6+ {[%clk 0:00:00.5]} 39. Kh4 {[%clk 0:00:06.1]}
39... Qg2 {[%clk 0:00:00.5]} 40. Rd8+ {[%clk 0:00:02]} 40... Kh7 {[%clk
0:00:00.1]} 41. Qf5+ {[%clk 0:00:02.5]} 1-0

[Event "Early-Titled-Tuesday-Blitz-May-07-2024"]
[Site "Chess.com"]
[Date "2024.05.07"]
[Round "2"]
[White "LLariMarc"]
[Black "Nechitaylo_Nikita"]
[Result "0-1"]
[WhiteElo "2528"]
[BlackElo "2364"]
[TimeControl "180+1"]
[EndTime "8:20:24 PDT"]
[Termination "Nechitaylo_Nikita won by resignation"]

1. d4 {[%clk 0:03:00.9]} 1... Nf6 {[%clk 0:03:00.1]} 2. Nf3 {[%clk 0:03:00.3]}
2... e6 {[%clk 0:03:00.7]} 3. Bg5 {[%clk 0:02:59.9]} 3... c5 {[%clk 0:03:00.5]}
4. e3 {[%clk 0:02:57.2]} 4... Nc6 {[%clk 0:02:59.1]} 5. Nbd2 {[%clk 0:02:49.8]}
5... h6 {[%clk 0:02:58.8]} 6. Bh4 {[%clk 0:02:49]} 6... Be7 {[%clk 0:02:54.7]}
7. c3 {[%clk 0:02:47.1]} 7... O-O {[%clk 0:02:53.6]} 8. Bd3 {[%clk 0:02:47.3]}
8... d5 {[%clk 0:02:51.8]} 9. O-O {[%clk 0:02:44]} 9... Nd7 {[%clk 0:02:40.5]}
10. Bxe7 {[%clk 0:02:42.4]} 10... Qxe7 {[%clk 0:02:41.4]} 11. Qe2 {[%clk
0:02:29.2]} 11... e5 {[%clk 0:02:35.6]} 12. dxe5 {[%clk 0:02:28.8]} 12... Ndxe5
{[%clk 0:02:35.4]} 13. Nxe5 {[%clk 0:02:28.2]} 13... Nxe5 {[%clk 0:02:33.3]} 14.
h3 {[%clk 0:02:28.7]} 14... b6 {[%clk 0:01:43.4]} 15. Nf3 {[%clk 0:02:24.5]}
15... Bb7 {[%clk 0:01:44]} 16. Nxe5 {[%clk 0:02:23.7]} 16... Qxe5 {[%clk
0:01:44.9]} 17. Rfd1 {[%clk 0:02:23.2]} 17... Rfe8 {[%clk 0:01:39.2]} 18. Qd2
{[%clk 0:02:19.2]} 18... Qg5 {[%clk 0:01:34.7]} 19. Bf1 {[%clk 0:02:19.1]} 19...
Rad8 {[%clk 0:01:31.4]} 20. a4 {[%clk 0:02:15.1]} 20... Re6 {[%clk 0:01:26]} 21.
a5 {[%clk 0:01:51.7]} 21... Rg6 {[%clk 0:01:18.3]} 22. e4 {[%clk 0:01:42.7]}
22... Qh5 {[%clk 0:00:52.2]} 23. axb6 {[%clk 0:01:37]} 23... axb6 {[%clk
0:00:45.4]} 24. Ra7 {[%clk 0:01:28.3]} 24... Bc6 {[%clk 0:00:34.9]} 25. Kh1
{[%clk 0:00:54.3]} 25... d4 {[%clk 0:00:34]} 26. f3 {[%clk 0:00:50.5]} 26...
Rdd6 {[%clk 0:00:11]} 27. Qf2 {[%clk 0:00:36.4]} 27... Bxe4 {[%clk 0:00:07.3]}
28. cxd4 {[%clk 0:00:31.4]} 28... cxd4 {[%clk 0:00:02.3]} 29. Rxd4 {[%clk
0:00:31.4]} 29... Bc6 {[%clk 0:00:02.4]} 30. Rxd6 {[%clk 0:00:29.5]} 30... Rxd6
{[%clk 0:00:03.3]} 31. Ra1 {[%clk 0:00:13]} 31... b5 {[%clk 0:00:02.9]} 32. Re1
{[%clk 0:00:12.9]} 32... Kh7 {[%clk 0:00:02]} 33. b4 {[%clk 0:00:12.9]} 33...
Qg5 {[%clk 0:00:00.8]} 34. Qc2+ {[%clk 0:00:12.8]} 34... g6 {[%clk 0:00:00.5]}
35. Qf2 {[%clk 0:00:10.3]} 35... Qd5 {[%clk 0:00:00.9]} 36. Be2 {[%clk
0:00:09.7]} 36... Qd4 {[%clk 0:00:01.4]} 37. Qg3 {[%clk 0:00:07.8]} 37... Qxb4
{[%clk 0:00:01.4]} 38. Rg1 {[%clk 0:00:06.2]} 38... Re6 {[%clk 0:00:01.6]} 39.
Bd3 {[%clk 0:00:05.9]} 39... Qc3 {[%clk 0:00:02.2]} 40. f4 {[%clk 0:00:04.5]}
40... Be4 {[%clk 0:00:01.2]} 41. Rd1 {[%clk 0:00:03.1]} 41... Rd6 {[%clk
0:00:01.6]} 42. Be2 {[%clk 0:00:02.7]} 42... Rxd1+ {[%clk 0:00:01.6]} 43. Bxd1
{[%clk 0:00:02.9]} 43... Qxg3 {[%clk 0:00:02.5]} 0-1

[Event "Early-Titled-Tuesday-Blitz-May-07-2024"]
[Site "Chess.com"]
[Date "2024.05.07"]
[Round "2"]
[White "MikeSailer"]
[Black "AttilaTurzo"]
[Result "0-1"]
[WhiteElo "2121"]
[BlackElo "2456"]
[TimeControl "180+1"]
[EndTime "8:20:24 PDT"]
[Termination "AttilaTurzo won on time"]

1. d4 {[%clk 0:02:36.5]} 1... d5 {[%clk 0:02:57.9]} 2. Bf4 {[%clk 0:02:33.6]}
2... c6 {[%clk 0:02:58.8]} 3. e3 {[%clk 0:02:33.5]} 3... Qb6 {[%clk 0:02:58.8]}
4. b3 {[%clk 0:02:31.1]} 4... Bf5 {[%clk 0:02:58.1]} 5. c3 {[%clk 0:02:29.7]}
5... e6 {[%clk 0:02:57.8]} 6. Nf3 {[%clk 0:02:28.9]} 6... Nf6 {[%clk 0:02:58.3]}
7. Bd3 {[%clk 0:02:27]} 7... Bxd3 {[%clk 0:02:51.3]} 8. Qxd3 {[%clk 0:02:26.5]}
8... Be7 {[%clk 0:02:52]} 9. O-O {[%clk 0:02:24.2]} 9... O-O {[%clk 0:02:51.3]}
10. Nbd2 {[%clk 0:02:23.4]} 10... c5 {[%clk 0:02:51]} 11. Ne5 {[%clk 0:02:21.4]}
11... Nc6 {[%clk 0:02:50.7]} 12. Ndf3 {[%clk 0:02:17.1]} 12... Rac8 {[%clk
0:02:47.1]} 13. Rfc1 {[%clk 0:02:15.7]} 13... Rfd8 {[%clk 0:02:44.1]} 14. Qe2
{[%clk 0:02:10.4]} 14... cxd4 {[%clk 0:02:32.7]} 15. cxd4 {[%clk 0:02:08.9]}
15... Ba3 {[%clk 0:02:30.1]} 16. Rc2 {[%clk 0:02:05.1]} 16... Nb4 {[%clk
0:02:24]} 17. Rxc8 {[%clk 0:02:04.2]} 17... Rxc8 {[%clk 0:02:24.9]} 18. Rd1
{[%clk 0:01:48.9]} 18... Rc2 {[%clk 0:02:09]} 19. Rd2 {[%clk 0:01:47.9]} 19...
Rc1+ {[%clk 0:02:08.4]} 20. Rd1 {[%clk 0:01:44.3]} 20... Nxa2 {[%clk 0:01:52]}
21. Rxc1 {[%clk 0:01:41.6]} 21... Nxc1 {[%clk 0:01:51.7]} 22. Qc2 {[%clk
0:01:38.5]} 22... Nxb3 {[%clk 0:01:16.8]} 23. Qc8+ {[%clk 0:01:33.4]} 23... Bf8
{[%clk 0:01:16.7]} 24. h3 {[%clk 0:01:18.7]} 24... h6 {[%clk 0:01:06.4]} 25. Bg3
{[%clk 0:00:51]} 25... Na5 {[%clk 0:00:33.7]} 26. Bh4 {[%clk 0:00:48.2]} 26...
g5 {[%clk 0:00:25.1]} 27. Nxg5 {[%clk 0:00:44.3]} 27... hxg5 {[%clk 0:00:25]}
28. Bxg5 {[%clk 0:00:43.6]} 28... Nh7 {[%clk 0:00:25.3]} 29. Bh6 {[%clk
0:00:38.1]} 29... Nc6 {[%clk 0:00:09.8]} 30. Nd7 {[%clk 0:00:32.8]} 30... Qb1+
{[%clk 0:00:09.3]} 31. Kh2 {[%clk 0:00:30.7]} 31... Qb4 {[%clk 0:00:10.1]} 32.
g3 {[%clk 0:00:12.6]} 32... a5 {[%clk 0:00:09.1]} 33. h4 {[%clk 0:00:06.8]}
33... a4 {[%clk 0:00:09.3]} 34. h5 {[%clk 0:00:04]} 34... a3 {[%clk 0:00:09.6]}
35. Bxf8 {[%clk 0:00:03]} 35... Nxf8 {[%clk 0:00:08.8]} 36. Nf6+ {[%clk
0:00:03.5]} 36... Kg7 {[%clk 0:00:06.8]} 37. Ne8+ {[%clk 0:00:00.4]} 37... Kh6
{[%clk 0:00:04.7]} 0-1

[Event "Early-Titled-Tuesday-Blitz-May-07-2024"]
[Site "Chess.com"]
[Date "2024.05.07"]
[Round "2"]
[White "Onischuk_V"]
[Black "Aryan_Tamadon"]
[Result "1-0"]
[WhiteElo "2822"]
[BlackElo "2566"]
[TimeControl "180+1"]
[EndTime "8:20:25 PDT"]
[Termination "Onischuk_V won by checkmate"]

1. e4 {[%clk 0:02:59.6]} 1... Nf6 {[%clk 0:03:00.4]} 2. Nc3 {[%clk 0:02:58.2]}
2... d6 {[%clk 0:02:59]} 3. d4 {[%clk 0:02:57.3]} 3... Nbd7 {[%clk 0:02:58]} 4.
Nf3 {[%clk 0:02:56.7]} 4... e5 {[%clk 0:02:58.2]} 5. g3 {[%clk 0:02:57.3]} 5...
Be7 {[%clk 0:02:50.8]} 6. Bg2 {[%clk 0:02:57.5]} 6... O-O {[%clk 0:02:51.1]} 7.
O-O {[%clk 0:02:57.9]} 7... exd4 {[%clk 0:02:47.3]} 8. Nxd4 {[%clk 0:02:57.6]}
8... Re8 {[%clk 0:02:48.1]} 9. h3 {[%clk 0:02:57.7]} 9... c6 {[%clk 0:02:48.4]}
10. Re1 {[%clk 0:02:57.9]} 10... Bf8 {[%clk 0:02:35.9]} 11. Bf4 {[%clk
0:02:37.9]} 11... Nb6 {[%clk 0:02:29.4]} 12. Qd3 {[%clk 0:02:31.2]} 12... g6
{[%clk 0:01:37.5]} 13. Rad1 {[%clk 0:02:29.8]} 13... Nh5 {[%clk 0:01:16.9]} 14.
Bc1 {[%clk 0:02:25.3]} 14... Qc7 {[%clk 0:00:45.3]} 15. g4 {[%clk 0:02:23.1]}
15... Ng7 {[%clk 0:00:43.8]} 16. Bf4 {[%clk 0:02:22.5]} 16... Ne6 {[%clk
0:00:32.1]} 17. Be3 {[%clk 0:01:57]} 17... Nc5 {[%clk 0:00:29.2]} 18. Qf1 {[%clk
0:01:56.8]} 18... a5 {[%clk 0:00:26.2]} 19. f4 {[%clk 0:01:50.8]} 19... Nbd7
{[%clk 0:00:26.6]} 20. Qf2 {[%clk 0:01:42.6]} 20... Nf6 {[%clk 0:00:24.8]} 21.
Bc1 {[%clk 0:01:37.5]} 21... Bg7 {[%clk 0:00:14]} 22. g5 {[%clk 0:01:36.2]}
22... Nh5 {[%clk 0:00:14.1]} 23. Ndb5 {[%clk 0:01:02.7]} 23... cxb5 {[%clk
0:00:13.4]} 24. Nxb5 {[%clk 0:01:03]} 24... Qe7 {[%clk 0:00:05.9]} 25. Nxd6
{[%clk 0:01:01.5]} 25... Ne6 {[%clk 0:00:03.9]} 26. Nxe8 {[%clk 0:00:56.8]}
26... Qxe8 {[%clk 0:00:04.8]} 27. f5 {[%clk 0:00:56.7]} 27... Nd4 {[%clk
0:00:01.9]} 28. Rxd4 {[%clk 0:00:55.5]} 28... Bxd4 {[%clk 0:00:02.8]} 29. Qxd4
{[%clk 0:00:55]} 29... Bxf5 {[%clk 0:00:03.5]} 30. Bd2 {[%clk 0:00:49.2]} 30...
Rd8 {[%clk 0:00:03.1]} 31. Qf2 {[%clk 0:00:47.5]} 31... Be6 {[%clk 0:00:03.6]}
32. Bc3 {[%clk 0:00:45.4]} 32... b5 {[%clk 0:00:02.7]} 33. Bxa5 {[%clk
0:00:44.2]} 33... Ra8 {[%clk 0:00:03]} 34. Bc3 {[%clk 0:00:44.1]} 34... Qd7
{[%clk 0:00:01.3]} 35. Qf3 {[%clk 0:00:34]} 35... Rxa2 {[%clk 0:00:01.4]} 36.
Rd1 {[%clk 0:00:32.8]} 36... Qc8 {[%clk 0:00:01.3]} 37. Qd3 {[%clk 0:00:28.6]}
37... Ra8 {[%clk 0:00:01.8]} 38. Qd4 {[%clk 0:00:28.3]} 38... f6 {[%clk
0:00:01.5]} 39. gxf6 {[%clk 0:00:28.3]} 39... Kf7 {[%clk 0:00:01.8]} 40. Qd6
{[%clk 0:00:25.8]} 40... Qb7 {[%clk 0:00:01.7]} 41. e5 {[%clk 0:00:23.6]} 41...
Qa7+ {[%clk 0:00:01.7]} 42. Bd4 {[%clk 0:00:22.9]} 42... Qb8 {[%clk 0:00:01.8]}
43. Bxa8 {[%clk 0:00:21.3]} 43... Qxa8 {[%clk 0:00:02.2]} 44. Qe7+ {[%clk
0:00:21.6]} 44... Kg8 {[%clk 0:00:02.9]} 45. Qxe6+ {[%clk 0:00:21.8]} 45... Kh8
{[%clk 0:00:03.6]} 46. f7 {[%clk 0:00:12.2]} 46... Nf4 {[%clk 0:00:02]} 47. Qf6#
{[%clk 0:00:11.8]} 1-0

[Event "Early-Titled-Tuesday-Blitz-May-07-2024"]
[Site "Chess.com"]
[Date "2024.05.07"]
[Round "2"]
[White "Mops_2004"]
[Black "ChainedDowntohell"]
[Result "0-1"]
[WhiteElo "2824"]
[BlackElo "2586"]
[TimeControl "180+1"]
[EndTime "8:20:33 PDT"]
[Termination "ChainedDowntohell won by checkmate"]

1. g3 {[%clk 0:03:00.9]} 1... d5 {[%clk 0:02:56.4]} 2. Nf3 {[%clk 0:03:00.6]}
2... Nc6 {[%clk 0:02:56]} 3. d4 {[%clk 0:03:00.2]} 3... Bg4 {[%clk 0:02:55.9]}
4. Bg2 {[%clk 0:03:00]} 4... Qd7 {[%clk 0:02:55.9]} 5. O-O {[%clk 0:02:57.1]}
5... O-O-O {[%clk 0:02:53.6]} 6. Ne5 {[%clk 0:02:57.1]} 6... Nxe5 {[%clk
0:02:53]} 7. dxe5 {[%clk 0:02:58]} 7... Bh3 {[%clk 0:02:51.6]} 8. Bxh3 {[%clk
0:02:56.8]} 8... Qxh3 {[%clk 0:02:51.2]} 9. Qd4 {[%clk 0:02:57.5]} 9... Kb8
{[%clk 0:02:37.8]} 10. Be3 {[%clk 0:02:56.7]} 10... b6 {[%clk 0:02:37.7]} 11. a4
{[%clk 0:02:56.9]} 11... Nh6 {[%clk 0:02:31.3]} 12. Bxh6 {[%clk 0:02:45.1]}
12... gxh6 {[%clk 0:02:08.8]} 13. a5 {[%clk 0:02:44.5]} 13... Rg8 {[%clk
0:02:07.4]} 14. axb6 {[%clk 0:02:31.3]} 14... cxb6 {[%clk 0:02:04]} 15. Nc3
{[%clk 0:02:11]} 15... Qg4 {[%clk 0:01:41.6]} 16. Qd3 {[%clk 0:02:05.6]} 16...
Qc4 {[%clk 0:01:33.8]} 17. Qxh7 {[%clk 0:01:57.3]} 17... Bg7 {[%clk 0:01:32.8]}
18. Qf5 {[%clk 0:01:45.5]} 18... d4 {[%clk 0:01:13.4]} 19. Nb1 {[%clk
0:00:58.7]} 19... h5 {[%clk 0:00:59.9]} 20. Na3 {[%clk 0:00:51.7]} 20... Qd5
{[%clk 0:00:58.7]} 21. Qxh5 {[%clk 0:00:45.3]} 21... Rh8 {[%clk 0:00:55.3]} 22.
Qf3 {[%clk 0:00:45.3]} 22... Bxe5 {[%clk 0:00:35.4]} 23. Qxd5 {[%clk 0:00:42]}
23... Rxd5 {[%clk 0:00:36.3]} 24. Nc4 {[%clk 0:00:42.4]} 24... Bf6 {[%clk
0:00:33.3]} 25. Rac1 {[%clk 0:00:20.6]} 25... Rdh5 {[%clk 0:00:33]} 26. h4
{[%clk 0:00:19.9]} 26... Rg8 {[%clk 0:00:28.8]} 27. Kg2 {[%clk 0:00:15.9]} 27...
Rxh4 {[%clk 0:00:27.1]} 28. Nd2 {[%clk 0:00:15.8]} 28... Rh5 {[%clk 0:00:21.5]}
29. Ne4 {[%clk 0:00:14.8]} 29... Be5 {[%clk 0:00:21.9]} 30. c3 {[%clk
0:00:08.5]} 30... dxc3 {[%clk 0:00:20.3]} 31. bxc3 {[%clk 0:00:08.8]} 31... Rgh8
{[%clk 0:00:20.5]} 32. c4 {[%clk 0:00:07.7]} 32... Kb7 {[%clk 0:00:18.9]} 33. c5
{[%clk 0:00:07.6]} 33... b5 {[%clk 0:00:19.1]} 34. c6+ {[%clk 0:00:07.8]} 34...
Kb6 {[%clk 0:00:19.4]} 35. Rfd1 {[%clk 0:00:06.4]} 35... Rh2+ {[%clk 0:00:16.5]}
36. Kf3 {[%clk 0:00:06.4]} 36... R8h6 {[%clk 0:00:15.9]} 37. Nc5 {[%clk
0:00:04.7]} 37... Bd6 {[%clk 0:00:11.4]} 38. c7 {[%clk 0:00:03.4]} 38... Bxc7
{[%clk 0:00:07]} 39. Rd7 {[%clk 0:00:03.5]} 39... Bd6 {[%clk 0:00:06.1]} 40. Ne4
{[%clk 0:00:03.3]} 40... b4 {[%clk 0:00:03.5]} 41. Rc8 {[%clk 0:00:02.8]} 41...
Kb5 {[%clk 0:00:03]} 42. Rb7+ {[%clk 0:00:02.5]} 42... Ka4 {[%clk 0:00:03.3]}
43. Rxa7+ {[%clk 0:00:02.9]} 43... Kb3 {[%clk 0:00:04.2]} 44. Rb7 {[%clk
0:00:03.1]} 44... Re6 {[%clk 0:00:03.2]} 45. Rc6 {[%clk 0:00:01.9]} 45... f5
{[%clk 0:00:03]} 46. Nc5+ {[%clk 0:00:02.3]} 46... Bxc5 {[%clk 0:00:02.8]} 47.
Rxe6 {[%clk 0:00:03.2]} 47... Rxf2# {[%clk 0:00:03.2]} 0-1